bitfinex-derivatives/quotes_BTCF0:USTF0_20251025
["timestamp","ask_amount","ask_price","bid_price","bid_amount"]
[1761368028129,0.20808578,111370.0,111360.0,0.10129184]
[1761368028329,0.20808578,111370.0,111360.0,0.19682412]
[1761368030530,0.20808578,111370.0,111360.0,0.21035412]
[1761368030828,0.0803343,111370.0,111360.0,0.21035412]
[1761368031825,0.0676143,111370.0,111360.0,0.21035412]
[1761368032228,0.19536578,111370.0,111360.0,0.21035412]
[1761368034531,0.0676143,111370.0,111360.0,0.21035412]
[1761368036233,0.19536578,111370.0,111360.0,0.21035412]
[1761368037729,0.20808578,111370.0,111360.0,0.19682412]
[1761368040431,0.20808578,111370.0,111360.0,0.22904332]
[1761368042140,0.20808578,111370.0,111360.0,0.10129184]
[1761368042339,0.20808578,111370.0,111360.0,0.22904332]
[1761368046045,0.0803343,111370.0,111360.0,0.22904332]
[1761368046246,0.20808578,111370.0,111360.0,0.22904332]
[1761368049341,0.20808578,111370.0,111360.0,0.20488068]
[1761368050146,0.24042689,111370.0,111360.0,0.22904875]
[1761368053046,0.24042689,111370.0,111360.0,0.10129727]
[1761368053247,0.65043726,111370.0,111360.0,0.02616807]
[1761368053445,0.53079259,111370.0,111360.0,0.02616807]
[1761368053846,0.53079259,111370.0,111360.0,0.002]
[1761368054550,0.5793024,111370.0,111360.0,0.002]
[1761368055842,0.5793024,111370.0,111360.0,0.04693]
[1761368056647,0.57934641,111370.0,111360.0,0.04693]
[1761368057252,0.5308366,111370.0,111360.0,0.04693]
[1761368059151,0.5308366,111370.0,111360.0,0.02441]
[1761368060357,0.5308366,111370.0,111360.0,0.002]
[1761368061158,0.5308366,111370.0,111360.0,0.02441]
[1761368061558,0.5308366,111370.0,111360.0,0.04693]
[1761368063560,0.40304111,111370.0,111360.0,0.04693]
[1761368079276,0.45155092,111370.0,111360.0,0.04693]
[1761368089782,0.57934641,111370.0,111360.0,0.04693]
[1761368092787,0.45155092,111370.0,111360.0,0.04693]
[1761368100187,0.57934641,111370.0,111360.0,0.04693]
[1761368101092,0.57934641,111370.0,111360.0,0.002]
[1761368102685,0.45155092,111370.0,111360.0,0.002]
[1761368102891,0.57934641,111370.0,111360.0,0.002]
[1761368116707,0.57935958,111370.0,111360.0,0.002]
[1761368125206,0.54701847,111370.0,111360.0,0.002]
[1761368129318,0.67482713,111370.0,111360.0,0.002]
[1761368130211,0.68482713,111370.0,111360.0,0.002]
[1761368130517,0.55701847,111370.0,111360.0,0.002]
[1761368132210,0.68482713,111370.0,111360.0,0.002]
[1761368132510,1.28482713,111370.0,111360.0,0.002]
[1761368132709,0.68482713,111370.0,111340.0,0.02415375]
[1761368132908,0.21182914,111350.0,111340.0,0.02415375]
[1761368133114,0.05979,111340.0,111330.0,0.09919295]
[1761368133713,0.05979,111340.0,111330.0,0.22700161]
[1761368134118,0.05979,111340.0,111330.0,0.19478241]
[1761368134819,0.05979,111340.0,111330.0,0.20078241]
[1761368135412,0.18759866,111340.0,111330.0,0.20078241]
[1761368136218,0.18759866,111340.0,111330.0,0.20078337]
[1761368144833,0.17365866,111340.0,111330.0,0.21365337]
[1761368145028,0.18759866,111340.0,111330.0,0.20078337]
[1761368145335,0.18759866,111340.0,111330.0,0.21365337]
[1761368149836,0.04585,111340.0,111330.0,0.21365337]
[1761368154140,0.04585,111340.0,111330.0,0.24587257]
[1761368159242,0.07006485,111340.0,111330.0,0.24587257]
[1761368160040,0.04585,111340.0,111330.0,0.24587257]
[1761368160241,0.07006485,111340.0,111330.0,0.24587257]
[1761368160835,0.02421485,111340.0,111330.0,0.24587257]
[1761368161036,0.41587216,111350.0,111340.0,0.057]
[1761368161238,0.41587216,111350.0,111340.0,0.20899452]
[1761368161437,0.54368082,111350.0,111340.0,0.08118586]
[1761368161637,0.54368082,111350.0,111340.0,0.20899452]
[1761368161843,0.54368082,111350.0,111340.0,0.08118586]
[1761368162245,0.54368082,111350.0,111340.0,0.20899452]
[1761368163442,0.54368082,111350.0,111340.0,0.21299452]
[1761368165551,0.41587216,111350.0,111340.0,0.21299452]
[1761368171747,0.42926216,111350.0,111340.0,0.21299452]
[1761368172349,0.42926216,111350.0,111340.0,0.19905452]
[1761368172654,0.55707082,111350.0,111340.0,0.07124586]
[1761368172854,0.55707082,111350.0,111340.0,0.19905452]
[1761368176356,0.42926216,111350.0,111340.0,0.19905452]
[1761368176556,0.55707082,111350.0,111340.0,0.19905452]
[1761368176757,0.42926216,111350.0,111340.0,0.07124586]
[1761368179655,0.42926216,111350.0,111340.0,0.19905685]
[1761368181759,0.11458216,111350.0,111340.0,0.21271685]
[1761368184056,0.08227485,111350.0,111340.0,0.21271685]
[1761368184262,0.08227485,111350.0,111340.0,0.08490586]
[1761368184563,0.08227485,111350.0,111340.0,0.21271685]
[1761368186761,0.08227485,111350.0,111340.0,0.18853099]
[1761368187166,0.08227485,111350.0,111340.0,0.22075019]
[1761368189661,0.08227485,111350.0,111340.0,0.0929392]
[1761368189870,0.08231453,111350.0,111340.0,0.0929392]
[1761368191366,0.08231453,111350.0,111340.0,0.0792792]
[1761368193966,0.08231453,111350.0,111340.0,0.10347019]
[1761368196671,0.11462184,111350.0,111340.0,0.07125099]
[1761368202774,0.24243283,111350.0,111340.0,0.07125099]
[1761368203174,0.2181783,111350.0,111340.0,0.07125099]
[1761368203970,0.2181783,111350.0,111340.0,0.04926099]
[1761368205075,0.2181783,111350.0,111340.0,0.02819099]
[1761368205474,0.26668811,111350.0,111340.0,0.004]
[1761368206175,0.2181783,111350.0,111340.0,0.004]
[1761368208280,0.28668811,111350.0,111340.0,0.004]
[1761368208478,0.05852,111340.0,111330.0,0.02419099]
[1761368208777,0.55755288,111340.0,111330.0,0.04592099]
[1761368208978,0.55755288,111340.0,111330.0,0.02419099]
[1761368209174,0.55755288,111340.0,111330.0,0.04592099]
[1761368209571,0.55755288,111340.0,111330.0,0.04792099]
[1761368211181,0.52522037,111340.0,111330.0,0.04792099]
[1761368213870,0.52520322,111340.0,111330.0,0.04790334]
[1761368215182,0.52520322,111340.0,111330.0,0.02373]
[1761368215982,0.52520322,111340.0,111330.0,0.04790334]
[1761368216286,0.52520322,111340.0,111330.0,0.02373]
[1761368218788,0.54520322,111340.0,111330.0,0.02617334]
[1761368218980,0.05758,111330.0,111320.0,0.0241685]
[1761368219282,0.05758,111330.0,111310.0,0.0322192]
[1761368219283,0.05758,111320.0,111310.0,0.045]
[1761368219483,0.50007099,111320.0,111310.0,0.045]
[1761368219686,0.39648904,111320.0,111310.0,0.045]
[1761368220681,0.39648904,111320.0,111310.0,0.0539978]
[1761368221186,0.39648904,111320.0,111310.0,0.046]
[1761368223188,0.37226,111320.0,111310.0,0.046]
[1761368224492,0.37226,111320.0,111310.0,0.05499887]
[1761368233099,0.50007099,111320.0,111310.0,0.05499887]
[1761368233402,0.50007099,111320.0,111310.0,0.046]
[1761368233801,0.50007099,111320.0,111310.0,0.001]
[1761368234199,0.50007099,111320.0,111310.0,0.02331]
[1761368234602,0.50007099,111320.0,111310.0,0.04652]
[1761368237202,0.52430003,111320.0,111310.0,0.04652]
[1761368237402,0.52430003,111320.0,111310.0,0.001]
[1761368237609,0.50007099,111320.0,111310.0,0.001]
[1761368238705,0.62808592,111320.0,111310.0,0.001]
[1761368241207,0.65231496,111320.0,111310.0,0.001]
[1761368248815,0.68464747,111320.0,111310.0,0.001]
[1761368250310,0.693687,111320.0,111310.0,0.001]
[1761368251917,0.66945796,111320.0,111310.0,0.001]
[1761368254121,0.66041843,111320.0,111310.0,0.001]
[1761368256723,0.34573843,111320.0,111310.0,0.001]
[1761368256918,0.66049843,111320.0,111310.0,0.001]
[1761368257118,0.70900824,111320.0,111310.0,0.001]
[1761368259426,0.70900824,111320.0,111310.0,0.02246]
[1761368259627,0.70900824,111320.0,111310.0,0.001]
[1761368260125,0.39424824,111320.0,111310.0,0.001]
[1761368260623,0.70900824,111320.0,111310.0,0.001]
[1761368276333,0.66049843,111320.0,111310.0,0.001]
[1761368285334,0.70900824,111320.0,111310.0,0.001]
[1761368296646,0.66049843,111320.0,111310.0,0.001]
[1761368300651,0.53259081,111320.0,111310.0,0.001]
[1761368301142,0.54876811,111320.0,111310.0,0.001]
[1761368302153,0.05826,111300.0,111280.0,0.04839724]
[1761368302350,0.55755381,111290.0,111280.0,0.07467653]
[1761368302551,0.54878946,111290.0,111280.0,0.04238347]
[1761368302850,0.54878946,111290.0,111280.0,0.05145619]
[1761368303052,0.54878946,111290.0,111280.0,0.04238347]
[1761368303255,0.51643774,111290.0,111280.0,0.04238347]
[1761368303651,0.51643774,111290.0,111280.0,0.0513037]
[1761368303851,0.51643774,111290.0,111280.0,0.0523037]
[1761368304351,0.51643774,111290.0,111280.0,0.04338347]
[1761368305258,0.51643774,111290.0,111280.0,0.05221189]
[1761368305950,0.51643774,111290.0,111280.0,0.04338347]
[1761368307360,0.49217395,111290.0,111280.0,0.04338347]
[1761368307556,0.49217395,111290.0,111280.0,0.05232761]
[1761368323667,0.36425565,111290.0,111280.0,0.05232761]
[1761368329176,0.38851944,111290.0,111280.0,0.05232761]
[1761368330670,0.38883944,111290.0,111280.0,0.06566761]
[1761368331473,0.38883944,111290.0,111280.0,0.05232761]
[1761368332075,0.42119116,111290.0,111280.0,0.05232761]
[1761368332776,0.42531696,111290.0,111280.0,0.05232761]
[1761368335178,0.55323526,111290.0,111280.0,0.05232761]
[1761368335876,0.55323526,111290.0,111280.0,0.04338347]
[1761368337475,0.55323526,111290.0,111280.0,0.0522534]
[1761368360695,0.55327632,111290.0,111280.0,0.0522534]
[1761368364097,0.55327632,111290.0,111280.0,0.18021276]
[1761368370002,0.55327632,111290.0,111280.0,0.0522534]
[1761368370200,0.55327632,111290.0,111280.0,0.18021276]
[1761368375007,0.55327632,111290.0,111280.0,0.0522534]
[1761368375203,0.55327632,111290.0,111280.0,0.18021276]
[1761368378704,0.55327632,111290.0,111280.0,0.00108347]
[1761368378705,0.68123568,111290.0,111280.0,0.00108347]
[1761368378905,0.01324,111270.0,111260.0,0.21857313]
[1761368379101,0.18564936,111270.0,111260.0,0.21857313]
[1761368379405,0.04892523,111270.0,111260.0,0.34653249]
[1761368379800,0.04892523,111270.0,111260.0,0.36947231]
[1761368380205,0.04892523,111270.0,111260.0,0.37247231]
[1761368380708,0.04892523,111270.0,111260.0,0.37347231]
[1761368383810,0.04892523,111270.0,111260.0,0.68839231]
[1761368384011,0.04892523,111270.0,111260.0,0.43247359]
[1761368384209,0.04892523,111270.0,111260.0,1.28839231]
[1761368389809,0.04892523,111270.0,111260.0,1.37826071]
[1761368390009,0.00447523,111270.0,111260.0,0.72994694]
[1761368390718,0.02640523,111270.0,111260.0,0.72994694]
[1761368393420,0.04892523,111270.0,111260.0,0.64007854]
[1761368394825,0.04892523,111270.0,111260.0,0.72994654]
[1761368395036,0.04892523,111270.0,111260.0,1.32994654]
[1761368395623,0.04892523,111270.0,111260.0,1.39460249]
[1761368400426,0.02640523,111270.0,111260.0,1.39460249]
[1761368401129,0.0436,111280.0,111270.0,0.05766]
[1761368401339,0.0436,111280.0,111270.0,0.26643303]
[1761368402932,0.0436,111280.0,111270.0,0.26743303]
[1761368415233,0.0436,111280.0,111270.0,0.23510756]
[1761368417042,0.0436,111280.0,111270.0,0.1071482]
[1761368417245,0.0436,111280.0,111270.0,0.23510756]
[1761368420938,0.02221,111280.0,111270.0,0.23510756]
[1761368421144,0.10116045,111290.0,111280.0,0.05854]
[1761368421343,0.22911981,111290.0,111280.0,0.21884862]
[1761368422742,0.10116045,111290.0,111280.0,0.09088926]
[1761368443862,0.53242797,111290.0,111270.0,0.08083746]
[1761368444066,0.05838,111270.0,111260.0,0.05417982]
[1761368444265,0.17765115,111270.0,111260.0,0.05417982]
[1761368444466,0.1988434,111270.0,111260.0,0.05417982]
[1761368444967,0.53803126,111270.0,111260.0,0.00918982]
[1761368445166,0.05838,111260.0,111250.0,0.05818]
[1761368445361,0.20751528,111260.0,111250.0,0.05818]
[1761368446666,0.07957225,111260.0,111250.0,0.05818]
[1761368446867,0.07957225,111260.0,111250.0,0.06695828]
[1761368447166,0.07957225,111260.0,111250.0,0.06795828]
[1761368456770,0.06648225,111260.0,111250.0,0.06795828]
[1761368457270,0.05771622,111260.0,111250.0,0.06795828]
[1761368467388,0.04895019,111260.0,111250.0,0.06795828]
[1761368473085,0.17689322,111260.0,111250.0,0.06795828]
[1761368473294,0.20116108,111260.0,111250.0,0.06795828]
[1761368474187,0.20116108,111260.0,111250.0,0.1163373]
[1761368481494,0.07321805,111260.0,111250.0,0.1163373]
[1761368482694,0.20123265,111260.0,111250.0,0.2443519]
[1761368482993,0.20118735,111260.0,111250.0,0.2443519]
[1761368491397,0.20118735,111260.0,111250.0,0.1163373]
[1761368491599,0.20118735,111260.0,111250.0,0.2443519]
[1761368497402,0.20118735,111260.0,111250.0,0.1163373]
[1761368497695,0.20118735,111260.0,111250.0,0.2443519]
[1761368500203,0.20118735,111260.0,111250.0,0.1163373]
[1761368500403,0.20118735,111260.0,111250.0,0.2443519]
[1761368506209,0.20118735,111260.0,111250.0,0.1163373]
[1761368506607,0.20118735,111260.0,111250.0,0.2443519]
[1761368510414,0.20118735,111260.0,111250.0,0.1163373]
[1761368510606,0.20118735,111260.0,111250.0,0.2443519]
[1761368514821,0.32920195,111260.0,111250.0,0.1163373]
[1761368515013,0.32920195,111260.0,111250.0,0.2443519]
[1761368515910,0.32920195,111260.0,111250.0,0.1163373]
[1761368516213,0.36155367,111260.0,111250.0,0.05918]
[1761368516418,0.32920195,111260.0,111250.0,0.05918]
[1761368516819,0.32920195,111260.0,111250.0,0.0679523]
[1761368526417,0.20118735,111260.0,111250.0,0.0679523]
[1761368526621,0.32920195,111260.0,111250.0,0.0679523]
[1761368528631,0.28378714,111260.0,111250.0,0.0679523]
[1761368528830,0.32907126,111260.0,111250.0,0.0679523]
[1761368532934,0.20105666,111260.0,111250.0,0.1959669]
[1761368533235,0.17680596,111260.0,111250.0,0.1959669]
[1761368533425,0.30482056,111260.0,111250.0,0.0679523]
[1761368534121,0.17680596,111260.0,111250.0,0.0679523]
[1761368535032,0.30482056,111260.0,111250.0,0.0679523]
[1761368540235,0.32907126,111260.0,111250.0,0.0679523]
[1761368544742,0.20107973,111260.0,111250.0,0.0679523]
[1761368545536,0.20117295,111260.0,111250.0,0.001]
[1761368545745,0.04543,111240.0,111230.0,0.10582902]
[1761368545934,0.19459287,111240.0,111230.0,0.10582902]
[1761368546135,0.19459287,111240.0,111230.0,0.05745]
[1761368547444,0.19459287,111240.0,111230.0,0.06829596]
[1761368548231,0.19459287,111240.0,111230.0,0.04611]
[1761368549142,0.20727287,111240.0,111230.0,0.04711]
[1761368554649,0.21127287,111240.0,111230.0,0.04511]
[1761368555147,0.21127287,111240.0,111230.0,0.04411]
[1761368556552,0.33931054,111240.0,111230.0,0.04411]
[1761368556750,0.21127287,111240.0,111230.0,0.04411]
[1761368558250,0.21127287,111240.0,111230.0,0.02257]
[1761368558750,0.33931054,111240.0,111230.0,0.02257]
[1761368558950,0.33931054,111240.0,111220.0,0.06578694]
[1761368559249,0.17051767,111230.0,111220.0,0.06578694]
[1761368559449,0.19155109,111230.0,111220.0,0.06578694]
[1761368559849,0.50679109,111230.0,111210.0,0.03081637]
[1761368560054,0.17051767,111220.0,111210.0,0.02177495]
[1761368560256,0.1981473,111220.0,111210.0,0.04348495]
[1761368564953,0.1981473,111220.0,111210.0,0.02177495]
[1761368565256,0.07010963,111220.0,111210.0,0.02177495]
[1761368565460,0.1981473,111220.0,111210.0,0.02177495]
[1761368566459,0.2001473,111220.0,111210.0,0.02177495]
[1761368567358,0.2900479,111220.0,111210.0,0.02177495]
[1761368568858,0.2900479,111220.0,111210.0,0.04348495]
[1761368569554,0.2835179,111220.0,111210.0,0.05668495]
[1761368569758,0.11300023,111220.0,111210.0,0.18472262]
[1761368569967,0.09196681,111220.0,111210.0,0.18472262]
[1761368570163,0.11337681,111220.0,111210.0,0.05668495]
[1761368570458,0.13444681,111220.0,111210.0,0.05668495]
[1761368575268,0.15553386,111220.0,111210.0,0.05668495]
[1761368575566,0.14676489,111220.0,111210.0,0.05668495]
[1761368575862,0.12567784,111220.0,111210.0,0.05668495]
[1761368576262,0.14674874,111220.0,111210.0,0.05668495]
[1761368577164,0.10460784,111220.0,111210.0,0.18472262]
[1761368577463,0.08319784,111220.0,111210.0,0.27463142]
[1761368578165,0.08319784,111220.0,111210.0,0.87463142]
[1761368578364,0.08319784,111220.0,111210.0,0.92301044]
[1761368578760,0.08319784,111220.0,111210.0,0.32301044]
[1761368582665,0.0899004,111220.0,111210.0,0.32301044]
[1761368583663,0.0899004,111220.0,111210.0,0.92301044]
[1761368587364,0.0899004,111220.0,111210.0,0.32300304]
[1761368591171,0.1324942,111240.0,111230.0,0.1261623]
[1761368591369,0.1324942,111240.0,111230.0,0.27689997]
[1761368592974,0.1354942,111240.0,111230.0,0.27689997]
[1761368604695,0.1354942,111240.0,111230.0,0.18700767]
[1761368605193,0.1354942,111240.0,111230.0,0.27690007]
[1761368606596,0.15645144,111240.0,111230.0,0.05897]
[1761368606796,0.28450405,111240.0,111230.0,0.18702261]
[1761368607795,0.28450405,111240.0,111230.0,0.05897]
[1761368607996,0.28450405,111240.0,111230.0,0.18702261]
[1761368608499,0.28450405,111240.0,111230.0,0.27691541]
[1761368609601,0.15645144,111240.0,111230.0,0.27691541]
[1761368609900,0.28450405,111240.0,111230.0,0.27691541]
[1761368614403,0.28450405,111240.0,111230.0,0.05897]
[1761368614605,0.28450405,111240.0,111230.0,0.18702261]
[1761368616395,0.28450405,111240.0,111230.0,0.23547525]
[1761368617104,0.28450405,111240.0,111230.0,0.18702261]
[1761368618408,0.28450405,111240.0,111230.0,0.23547525]
[1761368634017,0.41255666,111240.0,111230.0,0.10742264]
[1761368634221,0.28450405,111240.0,111230.0,0.10742264]
[1761368634615,0.41255666,111240.0,111230.0,0.10742264]
[1761368635325,0.28450405,111240.0,111230.0,0.23547525]
[1761368638634,0.15645144,111240.0,111230.0,0.23547525]
[1761368638831,0.28450405,111240.0,111230.0,0.23547525]
[1761368640826,0.41255666,111240.0,111230.0,0.10742264]
[1761368641234,0.41255666,111240.0,111220.0,0.32923]
[1761368641235,0.43669071,111240.0,111220.0,0.42370264]
[1761368641435,0.17201261,111230.0,111220.0,0.10842264]
[1761368641634,0.19949985,111230.0,111220.0,0.09447264]
[1761368643126,0.20049985,111230.0,111220.0,0.09447264]
[1761368643326,0.19396985,111230.0,111220.0,0.10777264]
[1761368643838,0.19396985,111230.0,111220.0,0.23582525]
[1761368644136,0.19396985,111230.0,111220.0,0.18737261]
[1761368644536,0.19396985,111230.0,111220.0,0.05932]
[1761368645237,0.19596985,111230.0,111220.0,0.05932]
[1761368655551,0.28586245,111230.0,111220.0,0.05932]
[1761368656451,0.15780984,111230.0,111220.0,0.05932]
[1761368656642,0.28586245,111230.0,111220.0,0.05932]
[1761368659657,0.28586245,111230.0,111220.0,0.18737261]
[1761368661258,0.60114245,111230.0,111220.0,0.18737261]
[1761368664856,0.28586245,111230.0,111220.0,0.18737261]
[1761368666655,0.15780984,111230.0,111220.0,0.05932]
[1761368667156,0.15780984,111230.0,111220.0,0.10777264]
[1761368673554,0.28589432,111230.0,111220.0,0.10777264]
[1761368679761,0.15780984,111230.0,111220.0,0.10777264]
[1761368683569,0.15780984,111230.0,111220.0,0.32575782]
[1761368690268,0.15780984,111230.0,111220.0,0.32575752]
[1761368695070,0.15780984,111230.0,111220.0,0.19767304]
[1761368696571,0.15780984,111230.0,111220.0,0.32575752]
[1761368702772,0.11384984,111230.0,111220.0,0.32575752]
[1761368706880,0.089889,111240.0,111230.0,0.1038724]
[1761368707078,0.089889,111240.0,111230.0,0.64079152]
[1761368707482,0.0898823,111250.0,111240.0,0.0898833]
[1761368707783,0.15617508,111250.0,111240.0,0.32562242]
[1761368708480,0.15917508,111250.0,111240.0,0.32562242]
[1761368710186,0.15917508,111250.0,111240.0,0.27708778]
[1761368712784,0.1381323,111250.0,111240.0,0.27708778]
[1761368714692,0.1381323,111250.0,111240.0,0.27708898]
[1761368715295,0.1381323,111250.0,111240.0,0.1490045]
[1761368716396,0.1381323,111250.0,111240.0,0.27708898]
[1761368718996,0.1381323,111250.0,111240.0,0.59220898]
[1761368727505,0.0928823,111250.0,111240.0,0.59220898]
[1761368728709,0.0928823,111250.0,111240.0,0.72015476]
[1761368730511,0.0928823,111250.0,111240.0,0.7686894]
[1761368734215,0.11398535,111250.0,111240.0,0.7686894]
[1761368735416,0.15967535,111250.0,111240.0,0.7686894]
[1761368736319,0.13726535,111250.0,111240.0,0.7686894]
[1761368755342,0.11398535,111250.0,111240.0,0.7686894]
[1761368760251,0.11397955,111250.0,111240.0,0.7686894]
[1761368760549,0.0898717,111260.0,111250.0,0.1485665]
[1761368760843,0.0898717,111260.0,111250.0,0.32512604]
[1761368761048,0.1117617,111260.0,111250.0,0.32512604]
[1761368761753,0.1147617,111260.0,111250.0,0.32512604]
[1761368765949,0.0928717,111260.0,111250.0,0.32512604]
[1761368767654,0.1357617,111260.0,111250.0,0.32512604]
[1761368773055,0.1357617,111260.0,111250.0,0.32512584]
[1761368778059,0.1139117,111260.0,111250.0,0.32512584]
[1761368779057,0.0928717,111260.0,111250.0,0.32512584]
[1761368779360,0.0928717,111260.0,111250.0,0.45314097]
[1761368780356,0.0928717,111260.0,111250.0,0.32512584]
[1761368785565,0.003,111260.0,111250.0,0.40459656]
[1761368785866,0.003,111260.0,111250.0,0.46925251]
[1761368786062,0.003,111260.0,111250.0,0.34123738]
[1761368788867,0.003,111260.0,111250.0,0.34120386]
[1761368800880,0.003,111260.0,111250.0,0.27654791]
[1761368808289,0.02412,111260.0,111250.0,0.34120386]
[1761368809087,0.04737,111260.0,111250.0,0.34120386]
[1761368810690,0.02412,111260.0,111250.0,0.34120386]
[1761368813094,0.003,111260.0,111250.0,0.34120386]
[1761368822598,0.1463605,111290.0,111270.0,0.1488901]
[1761368822804,0.1463605,111290.0,111280.0,0.18701161]
[1761368822805,0.21253048,111290.0,111280.0,0.18701161]
[1761368823202,0.21253048,111290.0,111280.0,0.05903]
[1761368823498,0.21253048,111290.0,111280.0,0.068024]
[1761368824906,0.21753048,111290.0,111280.0,0.068024]
[1761368825305,0.18517876,111290.0,111280.0,0.068024]
[1761368828006,0.78517876,111290.0,111280.0,0.068024]
[1761368829308,0.78517876,111290.0,111280.0,0.19600561]
[1761368829802,0.7398583,111290.0,111280.0,0.19600561]
[1761368830108,0.78519569,111290.0,111280.0,0.19600561]
[1761368830606,0.78519569,111290.0,111280.0,0.068024]
[1761368831710,0.78519569,111290.0,111280.0,0.19600561]
[1761368832810,0.16100379,111290.0,111280.0,0.28585791]
[1761368835110,0.13825379,111290.0,111280.0,0.28585791]
[1761368835310,0.16100379,111290.0,111280.0,0.28585791]
[1761368838109,0.11599379,111290.0,111280.0,0.33439803]
[1761368838314,0.0948483,111290.0,111280.0,0.33439803]
[1761368844219,0.1171083,111290.0,111280.0,0.33439803]
[1761368847927,0.0948483,111290.0,111280.0,0.33439803]
[1761368850627,0.1171083,111290.0,111280.0,0.33439803]
[1761368850933,0.1171083,111290.0,111280.0,0.46224658]
[1761368858839,0.17390698,111310.0,111280.0,0.55209888]
[1761368859033,0.21623169,111310.0,111300.0,0.18495508]
[1761368860638,0.21623169,111310.0,111300.0,0.19495508]
[1761368861341,0.21623169,111310.0,111300.0,0.19595508]
[1761368861840,0.21623169,111310.0,111300.0,0.18595508]
[1761368861841,0.21723169,111310.0,111300.0,0.18595508]
[1761368862041,0.21723169,111310.0,111300.0,0.18495508]
[1761368864643,0.81723169,111310.0,111300.0,0.18495508]
[1761368870853,0.84958341,111310.0,111300.0,0.18495508]
[1761368872049,0.72166833,111310.0,111300.0,0.18495508]
[1761368872248,0.84958341,111310.0,111300.0,0.18495508]
[1761368876647,0.84958341,111310.0,111300.0,0.05704]
[1761368881055,0.81723169,111310.0,111300.0,0.05704]
[1761368885857,0.84958341,111310.0,111300.0,0.05704]
[1761368887661,0.81723169,111310.0,111300.0,0.05704]
[1761368888059,0.84958341,111310.0,111300.0,0.05704]
[1761368889261,0.37749849,111310.0,111290.0,0.08480012]
[1761368889468,0.33761919,111300.0,111290.0,0.31492]
[1761368889763,0.3587739,111300.0,111290.0,0.31492]
[1761368890459,0.3587739,111300.0,111290.0,0.31592]
[1761368891564,0.3587739,111300.0,111290.0,0.001]
[1761368891970,0.3587739,111300.0,111280.0,0.5589592]
[1761368892164,0.23085882,111300.0,111290.0,0.001]
[1761368892561,0.83085882,111300.0,111280.0,0.51041908]
[1761368892761,0.23185882,111300.0,111280.0,0.51041908]
[1761368893263,0.17280508,111290.0,111280.0,0.067584]
[1761368893470,0.19395979,111290.0,111280.0,0.382504]
[1761368894171,0.19395979,111290.0,111280.0,0.067584]
[1761368894372,0.21817882,111290.0,111280.0,0.382504]
[1761368894767,0.22470882,111290.0,111280.0,0.382504]
[1761368895469,0.82470882,111290.0,111280.0,0.04495]
[1761368895669,0.82470882,111290.0,111280.0,0.02246]
[1761368895868,1.2675439,111290.0,111270.0,0.06748666]
[1761368896167,0.17933508,111280.0,111270.0,0.05384666]
[1761368896376,0.07257471,111280.0,111270.0,0.05384666]
[1761368896570,0.20048979,111280.0,111270.0,0.05384666]
[1761368898075,0.20048979,111280.0,111270.0,0.05484666]
[1761368898574,0.20048979,111280.0,111270.0,0.05384666]
[1761368901778,0.32840487,111280.0,111270.0,0.05384666]
[1761368902077,0.20048979,111280.0,111270.0,0.05384666]
[1761368904485,0.20051548,111280.0,111270.0,0.05384666]
[1761368911385,0.20051548,111280.0,111270.0,0.06747666]
[1761368912785,0.0660704,111280.0,111270.0,0.06747666]
[1761368915485,0.0660704,111280.0,111270.0,0.05384666]
[1761368915691,0.0726004,111280.0,111270.0,0.05384666]
[1761368916790,0.20058667,111280.0,111270.0,0.05384666]
[1761368917593,0.20058667,111280.0,111270.0,0.04495]
[1761368920095,0.22473896,111280.0,111270.0,0.04495]
[1761368923698,0.82473896,111280.0,111270.0,0.04495]
[1761368923901,0.22473896,111280.0,111270.0,0.04495]
[1761368924091,0.224841,111280.0,111270.0,0.04495]
[1761368926702,0.224841,111280.0,111270.0,0.05874]
[1761368929402,0.218311,111280.0,111270.0,0.05874]
[1761368940912,0.224841,111280.0,111260.0,0.07092461]
[1761368941111,0.17164627,111270.0,111260.0,0.11535461]
[1761368941318,0.217081,111270.0,111260.0,0.04443]
[1761368942712,0.56443272,111270.0,111250.0,0.06700645]
[1761368942914,0.17141627,111260.0,111250.0,0.06700645]
[1761368943112,0.19264435,111260.0,111250.0,0.06700645]
[1761368943508,0.19264435,111260.0,111250.0,0.05797]
[1761368943711,0.19264435,111260.0,111240.0,0.05797]
[1761368943712,0.26188272,111260.0,111240.0,0.05797]
[1761368943915,0.51070292,111250.0,111240.0,0.05797]
[1761368944111,0.531931,111250.0,111240.0,0.04434]
[1761368946114,0.531931,111250.0,111240.0,0.04534]
[1761368946319,0.50772435,111250.0,111240.0,0.04534]
[1761368951832,0.50772435,111250.0,111240.0,0.0235]
[1761368952629,0.50772435,111250.0,111240.0,0.001]
[1761368954840,0.50772435,111250.0,111230.0,0.01344]
[1761368955136,0.50772435,111250.0,111230.0,0.0225]
[1761368955137,0.17794627,111240.0,111230.0,0.0225]
[1761368955336,0.19917435,111240.0,111230.0,0.0225]
[1761368956139,0.19917435,111240.0,111230.0,0.0255]
[1761368956334,0.19917435,111240.0,111230.0,0.003]
[1761368959341,0.19917435,111240.0,111230.0,0.0255]
[1761368961241,0.19917435,111240.0,111230.0,0.003]
[1761368967045,0.223381,111240.0,111230.0,0.003]
[1761368971461,0.25573272,111240.0,111230.0,0.003]
[1761368973261,0.23152607,111240.0,111230.0,0.003]
[1761368973859,0.23152607,111240.0,111230.0,0.0252]
[1761368974762,0.35974036,111240.0,111230.0,0.0252]
[1761368974965,0.38390518,111240.0,111230.0,0.0252]
[1761368976163,0.38390518,111240.0,111230.0,0.003]
[1761368978160,0.35974036,111240.0,111230.0,0.003]
[1761368978362,0.35974036,111240.0,111230.0,0.0252]
[1761368978955,0.35974036,111240.0,111230.0,0.04812]
[1761368982167,0.35974036,111240.0,111230.0,0.0252]
[1761368982461,0.35974036,111240.0,111230.0,0.003]
[1761368984465,0.35974036,111240.0,111230.0,0.0252]
[1761368984766,0.40825017,111240.0,111230.0,0.0252]
[1761368986668,0.40825017,111240.0,111230.0,0.003]
[1761368987267,1.00825017,111240.0,111230.0,0.003]
[1761368987668,1.00825017,111240.0,111220.0,0.05856]
[1761368987869,0.51208703,111230.0,111220.0,0.05856]
[1761368988066,0.53331511,111230.0,111220.0,0.05856]
[1761368988771,0.53331511,111230.0,111220.0,0.06256]
[1761368989269,0.53331511,111230.0,111220.0,0.05856]
[1761368989470,0.53331511,111230.0,111220.0,0.06256]
[1761368989971,0.66794539,111230.0,111220.0,0.04912]
[1761368990372,0.57219683,111230.0,111220.0,0.04912]
[1761368990671,0.70029711,111230.0,111220.0,0.04912]
[1761368991072,0.69152789,111230.0,111220.0,0.004]
[1761368992172,0.70049717,111230.0,111220.0,0.004]
[1761368992972,0.69152789,111230.0,111220.0,0.004]
[1761368993271,0.56342761,111230.0,111220.0,0.04912]